fUST/lending_fUST_20250106
["ID","MTS","AMOUNT","RATE_DAILY","PERIOD"]
[347836727,1736146063056,-338.36142045,0.00019741,2]
[347836728,1736146063078,-500.0,0.00019744,3]
[347836729,1736146063100,-500.0,0.00019744,3]
[347836730,1736146063122,-500.0,0.00019744,3]
[347836731,1736146063148,-500.0,0.00019744,3]
[347836732,1736146063172,-500.0,0.00019744,3]
[347836733,1736146063195,-500.0,0.00019745,3]
[347836734,1736146063218,-500.0,0.00019745,3]
[347836735,1736146063353,-500.0,0.00019745,3]
[347836736,1736146063378,-500.0,0.00019747,3]
[347836737,1736146063402,-7372.72,0.00019747,3]
[347836738,1736146063427,-5392.63167972,0.00019762,2]
[347836739,1736146063450,-786.91,0.00019764,3]
[347836740,1736146063472,-500.0,0.00019764,3]
[347836741,1736146063494,-500.0,0.00019764,3]
[347836742,1736146063516,-500.0,0.00019764,3]
[347836743,1736146063538,-500.0,0.00019764,3]
[347836744,1736146063560,-500.0,0.00019764,2]
[347836745,1736146063582,-5392.63167972,0.00019934,2]
[347836746,1736146063603,-500.0,0.0002,3]
[347836747,1736146063624,-500.0,0.0002,3]
[347836748,1736146063647,-500.0,0.0002,3]
[347836749,1736146063678,-696.96,0.0002,3]
[347836750,1736146063700,-500.0,0.0002,3]
[347836751,1736146063724,-433.38383566,0.0002,7]
[347836752,1736146063746,-542.57,0.0002,3]
[347836753,1736146063770,-500.0,0.0002,3]
[347836754,1736146063792,-500.0,0.0002,3]
[347836755,1736146063814,-500.0,0.0002,3]
[347836756,1736146063837,-500.0,0.0002,3]
[347836757,1736146063859,-500.0,0.0002,3]
[347836758,1736146063881,-500.0,0.0002,3]
[347836759,1736146063903,-2440.25,0.0002,3]
[347836760,1736146063927,-790.14,0.0002,3]
[347836761,1736146063949,-500.0,0.0002,3]
[347836762,1736146063972,-500.0,0.0002,3]
[347836763,1736146063994,-500.0,0.0002,3]
[347836764,1736146064016,-500.0,0.0002,3]
[347836765,1736146064038,-500.0,0.0002,3]
[347836766,1736146064062,-646.64,0.0002,3]
[347836767,1736146064084,-500.0,0.0002,3]
[347836768,1736146064105,-539.99,0.0002,3]
[347836769,1736146064128,-578.19,0.0002,3]
[347836770,1736146064153,-735.0,0.0002,3]
[347836771,1736146064176,-500.0,0.0002,3]
[347836772,1736146064199,-500.0,0.0002,3]
[347836773,1736146064222,-500.0,0.0002,3]
[347836774,1736146064245,-584.77,0.0002,3]
[347836775,1736146064268,-500.0,0.0002,3]
[347836776,1736146064291,-654.09,0.0002,3]
[347836777,1736146064314,-500.0,0.0002,3]
[347836778,1736146064336,-500.0,0.0002,3]
[347836779,1736146064359,-500.0,0.0002,3]
[347836780,1736146064382,-500.0,0.0002,3]
[347836781,1736146064406,-500.0,0.0002,3]
[347836782,1736146064429,-500.0,0.0002,3]
[347836783,1736146064452,-500.0,0.0002,3]
[347836784,1736146064473,-500.0,0.0002,3]
[347836785,1736146064495,-343.47,0.0002,3]
[347836786,1736146064517,-543.38,0.0002,3]
[347836787,1736146064539,-508.88,0.0002,3]
[347836788,1736146064561,-500.0,0.0002,3]
[347836789,1736146064584,-1314.52,0.0002,3]
[347836790,1736146064606,-500.0,0.0002,3]
[347836791,1736146064629,-21293.08,0.0002,3]
[347836792,1736146064653,-797.37,0.0002,3]
[347836793,1736146064679,-1586.34,0.0002,3]
[347836794,1736146064701,-500.0,0.0002,3]
[347836795,1736146064725,-586.17,0.0002,3]
[347836796,1736146064748,-284.71,0.0002,3]
[347836797,1736146064771,-683.85,0.0002,3]
[347836798,1736146064793,-500.0,0.0002,3]
[347836799,1736146064816,-500.0,0.0002,3]
[347836800,1736146064838,-1500.74,0.0002,3]
[347836801,1736146064861,-500.0,0.0002,3]
[347836802,1736146064884,-500.0,0.0002,3]
[347836803,1736146064908,-500.0,0.0002,3]
[347836804,1736146064928,-500.0,0.0002,3]
[347836805,1736146064950,-500.0,0.0002,3]
[347836806,1736146064973,-772.32,0.0002,3]
[347836807,1736146064996,-924.02,0.0002,3]
[347836808,1736146065018,-935.77,0.0002,3]
[347836809,1736146065042,-3574.28,0.0002,3]
[347836810,1736146065066,-2332.74,0.00020012,3]
[347836811,1736146065089,-500.0,0.00020012,3]
[347836812,1736146065113,-2199.98,0.00020012,3]
[347836813,1736146065137,-5164.37,0.00020017,3]
[347836814,1736146065162,-1552.54,0.00020017,3]
[347836815,1736146065185,-500.0,0.00020018,3]
[347836816,1736146065208,-500.0,0.00020018,3]
[347836817,1736146065231,-500.0,0.00020018,3]
[347836818,1736146065254,-500.0,0.00020018,3]
[347836819,1736146065277,-500.0,0.00020019,3]
[347836820,1736146065299,-500.0,0.00020019,3]
[347836821,1736146065321,-1000.0,0.00020021,2]
[347836822,1736146065343,-500.0,0.00020021,3]
[347836823,1736146065367,-7372.72,0.00020021,3]
[347836824,1736146065390,-786.91,0.00020038,3]
[347836825,1736146065413,-500.0,0.00020038,3]
[347836826,1736146065435,-500.0,0.00020038,3]
[347836827,1736146065459,-500.0,0.00020038,2]
[347836828,1736146065483,-5392.63167972,0.00020107,2]
[347836829,1736146065505,-173.0751915,0.00020108,2]
[347836830,1736146065528,-446.12652669,0.00020195,2]
[347836831,1736146065550,-32637.23042333,0.00020214,3]
[347836832,1736146065572,-1860.47975196,0.00020214,2]
[347836833,1736146065593,-546.3689846,0.00020247,2]
[347836834,1736146065615,-13192.91789701,0.00020255,2]
[347836835,1736146065636,-500.0,0.00020273,2]
[347836836,1736146065658,-500.0,0.00020273,2]
[347836837,1736146065682,-158.48,0.00020273,3]
[347836838,1736146065703,-500.0,0.00020273,3]
[347836839,1736146065727,-500.0,0.00020273,3]
[347836840,1736146065751,-696.96,0.00020273,3]
[347836841,1736146065772,-323.35,0.00020273,3]
[347836842,1736146065794,-500.0,0.00020273,3]
[347836843,1736146065816,-500.0,0.00020273,3]
[347836844,1736146065857,-500.0,0.00020273,3]
[347836845,1736146065879,-500.0,0.00020273,3]
[347836846,1736146065901,-500.0,0.00020273,3]
[347836847,1736146065926,-500.0,0.00020273,3]
[347836848,1736146065947,-2440.25,0.00020273,3]
[347836849,1736146065969,-790.14,0.00020273,3]
[347836850,1736146065990,-500.0,0.00020273,3]
[347836851,1736146066012,-236.23,0.00020273,3]
[347836852,1736146066034,-500.0,0.00020273,3]
[347836853,1736146066057,-500.0,0.00020273,3]
[347836854,1736146066085,-646.64,0.00020273,3]
[347836855,1736146066111,-500.0,0.00020273,3]
[347836856,1736146066140,-539.99,0.00020273,3]
[347836857,1736146066167,-578.19,0.00020273,3]
[347836858,1736146066192,-735.0,0.00020273,3]
[347836859,1736146066216,-500.0,0.00020273,3]
[347836860,1736146066239,-500.0,0.00020273,3]
[347836861,1736146066262,-500.0,0.00020273,3]
[347836862,1736146066286,-584.77,0.00020273,3]
[347836863,1736146066309,-500.0,0.00020273,3]
[347836864,1736146066332,-654.09,0.00020273,3]
[347836865,1736146066356,-399.65806065,0.00020273,3]
[347836866,1736146066383,-500.0,0.00020273,3]
[347836867,1736146066412,-238.01,0.00020273,3]
[347836868,1736146066435,-500.0,0.00020273,3]
[347836869,1736146066459,-500.0,0.00020273,3]
[347836870,1736146066482,-500.0,0.00020273,3]
[347836871,1736146066505,-500.0,0.00020273,3]
[347836872,1736146066527,-500.0,0.00020273,3]
[347836873,1736146066548,-543.38,0.00020273,3]
[347836874,1736146066571,-508.88,0.00020273,3]
[347836875,1736146066594,-500.0,0.00020273,3]
[347836876,1736146066617,-1314.52,0.00020273,3]
[347836877,1736146066642,-500.0,0.00020273,3]
[347836878,1736146066664,-21293.08,0.00020273,3]
[347836879,1736146066690,-797.37,0.00020273,3]
[347836880,1736146066713,-1586.34,0.00020273,3]
[347836881,1736146066738,-500.0,0.00020273,3]
[347836882,1736146066760,-586.17,0.00020273,3]
[347836883,1736146066783,-683.85,0.00020273,3]
[347836884,1736146066804,-500.0,0.00020273,3]
[347836885,1736146066825,-500.0,0.00020273,3]
[347836886,1736146066848,-1500.74,0.00020273,3]
[347836887,1736146066870,-500.0,0.00020273,3]
[347836888,1736146066893,-500.0,0.00020273,3]
[347836889,1736146066916,-500.0,0.00020273,3]
[347836890,1736146066937,-500.0,0.00020273,3]
[347836891,1736146066959,-500.0,0.00020273,3]
[347836892,1736146066981,-772.32,0.00020273,3]
[347836893,1736146067004,-924.02,0.00020273,3]
[347836894,1736146067029,-935.77,0.00020273,3]
[347836895,1736146067054,-3574.28,0.00020273,3]
[347836896,1736146067077,-5392.63167972,0.00020279,2]
[347836897,1736146067103,-2332.74,0.00020286,3]
[347836898,1736146067126,-500.0,0.00020286,3]
[347836899,1736146067152,-2199.98,0.00020286,3]
[347836900,1736146067177,-5164.37,0.00020291,3]
[347836901,1736146067200,-500.0,0.00020292,3]
[347836902,1736146067223,-500.0,0.00020292,3]
[347836903,1736146067247,-503.44053095,0.00020292,3]
[347836904,1736146067270,-500.0,0.00020292,3]
[347836905,1736146067293,-500.0,0.00020293,3]
[347836906,1736146067317,-500.0,0.00020293,3]
[347836907,1736146067340,-500.0,0.00020295,3]
[347836908,1736146067365,-7372.72,0.00020295,3]
[347836909,1736146067388,-1002.104133,0.000203,2]
[347836910,1736146067412,-786.91,0.00020312,3]
[347836911,1736146067435,-500.0,0.00020312,2]
[347836912,1736146067459,-1552.54,0.00020313,3]
[347836913,1736146067483,-1552.54,0.00020313,3]
[347836914,1736146067510,-1552.54,0.00020313,3]
[347836915,1736146067534,-1552.54,0.00020313,3]
[347836916,1736146067574,-1552.54,0.00020313,3]
[347836917,1736146067600,-1552.54,0.00020313,3]
[347836918,1736146067624,-1552.54,0.00020313,3]
[347836919,1736146067651,-1552.54,0.00020313,3]
[347836920,1736146067677,-1552.54,0.00020313,3]
[347836921,1736146067703,-1552.54,0.00020313,3]
[347836922,1736146067729,-1552.54,0.00020313,3]
[347836923,1736146067761,-1552.54,0.00020313,3]
[347836924,1736146067785,-1552.54,0.00020313,3]
[347836925,1736146067810,-1552.54,0.00020313,3]
[347836926,1736146067834,-1552.54,0.00020313,3]
[347836927,1736146067859,-1552.55779486,0.00020313,3]
[347836928,1736146067882,-4814.59774835,0.00020314,2]
[347836929,1736146067909,-57599.6291443,0.00020314,2]
[347836930,1736146067935,-167519.83095825,0.00020314,5]
[347836939,1736146232602,-816.23987747,0.000189,2]
[347836940,1736146232612,-311.5944524,0.00019173,2]
[347836942,1736146232623,-300.0,0.00019177,2]
[347836943,1736146232632,-2217.28,0.00019178,2]
[347836944,1736146232642,-581.88,0.00019178,2]
[347836945,1736146232651,-1846.75,0.00019178,2]
[347836946,1736146232660,-506.2706202,0.00019178,2]
[347836947,1736146232670,-500.0,0.00019178,2]
[347836948,1736146232680,-500.0,0.00019178,2]
[347836949,1736146232691,-517.82,0.00019178,2]
[347836950,1736146232701,-500.0,0.00019178,2]
[347836951,1736146232710,-1040.66,0.00019178,2]
[347836952,1736146232720,-500.0,0.00019178,2]
[347836953,1736146232733,-153.26,0.00019178,2]
[347836954,1736146232742,-551.76,0.00019178,2]
[347836955,1736146232752,-631.25,0.00019178,2]
[347836956,1736146232762,-500.0,0.00019178,2]
[347836957,1736146232773,-500.0,0.00019178,2]
[347836958,1736146232908,-500.0,0.00019178,2]
[347836959,1736146232924,-500.0,0.00019178,2]
[347836960,1736146232934,-1188.08,0.00019178,2]
[347836961,1736146232944,-500.0,0.00019178,2]
[347836962,1736146232954,-500.0,0.00019178,2]
[347836963,1736146232964,-1741.65,0.00019178,2]
[347836964,1736146232973,-16857.02,0.00019178,2]
[347836965,1736146232983,-500.0,0.0001919,3]
[347836966,1736146232992,-765.0,0.0001919,3]
[347836967,1736146233002,-500.0,0.00019196,3]
[347836968,1736146233011,-500.0,0.00019197,3]
[347836969,1736146233021,-500.0,0.00019199,3]
[347836970,1736146233031,-500.0,0.00019452,3]
[347836971,1736146233040,-2217.28,0.00019452,3]
[347836972,1736146233050,-581.88,0.00019452,3]
[347836973,1736146233059,-1846.75,0.00019452,3]
[347836974,1736146233069,-500.0,0.00019452,3]
[347836975,1736146233079,-500.0,0.00019452,3]
[347836976,1736146233088,-517.82,0.00019452,3]
[347836977,1736146233098,-500.0,0.00019452,3]
[347836978,1736146233108,-1040.66,0.00019452,3]
[347836979,1736146233117,-500.0,0.00019452,3]
[347836980,1736146233128,-551.76,0.00019452,3]
[347836981,1736146233137,-631.25,0.00019452,3]
[347836982,1736146233147,-500.0,0.00019452,3]
[347836983,1736146233156,-500.0,0.00019452,3]
[347836984,1736146233166,-500.0,0.00019452,3]
[347836985,1736146233176,-500.0,0.00019452,3]
[347836986,1736146233186,-1188.08,0.00019452,3]
[347836987,1736146233195,-500.0,0.00019452,3]
[347836988,1736146233206,-500.0,0.00019452,3]
[347836989,1736146233216,-1741.65,0.00019452,3]
[347836990,1736146233226,-1526.68077508,0.00019452,3]
[347836991,1736146233319,-722.59937,0.00019452,3]
[347836992,1736146237845,175.548639,0.00013973,2]
[347837532,1736146243373,-611.42,0.00019178,2]
[347837533,1736146243383,-14607.73985492,0.00019452,3]
[347837534,1736146243392,-611.42,0.00019452,3]
[347837535,1736146243401,-500.0,0.00019464,3]
[347837536,1736146243410,-765.0,0.00019464,3]
[347837537,1736146243419,-500.0,0.0001947,3]
[347837538,1736146243429,-500.0,0.00019471,3]
[347837539,1736146243438,-372.95343065,0.00019473,3]
[347837540,1736146243448,-500.0,0.00019726,3]
[347837541,1736146243457,-803.97,0.00019726,3]
[347837542,1736146243466,-500.0,0.00019726,3]
[347837543,1736146243475,-2217.28,0.00019726,3]
[347837544,1736146243484,-581.88,0.00019726,3]
[347837545,1736146243494,-1846.75,0.00019726,3]
[347837546,1736146243503,-500.0,0.00019726,3]
[347837547,1736146243512,-500.0,0.00019726,3]
[347837548,1736146243522,-517.82,0.00019726,3]
[347837549,1736146243531,-500.0,0.00019726,3]
[347837551,1736146243541,-1040.66,0.00019726,3]
[347837553,1736146243550,-500.0,0.00019726,3]
[347837555,1736146243559,-551.76,0.00019726,3]
[347837557,1736146243568,-631.25,0.00019726,3]
[347837559,1736146243576,-500.0,0.00019726,3]
[347837560,1736146243586,-620.67,0.00019726,3]
[347837563,1736146243595,-500.0,0.00019726,3]
[347837564,1736146243605,-500.0,0.00019726,3]
[347837567,1736146243614,-1188.08,0.00019726,3]
[347837568,1736146243624,-326.3,0.00019726,3]
[347837570,1736146243633,-500.0,0.00019726,3]
[347837572,1736146243642,-1741.65,0.00019726,3]
[347837574,1736146243651,-16857.02,0.00019726,3]
[347837576,1736146243661,-611.42,0.00019726,3]
[347837578,1736146243670,-500.0,0.00019738,3]
[347837580,1736146243679,-765.0,0.00019738,3]
[347837582,1736146243689,-500.0,0.00019744,3]
[347837584,1736146243698,-500.0,0.00019745,3]
[347837586,1736146243708,-500.0,0.00019763,3]
[347837589,1736146243718,-1255.86,0.00019763,3]
[347837591,1736146243727,-541.38,0.00019763,3]
[347837593,1736146243736,-500.0,0.00019763,3]
[347837594,1736146243745,-500.0,0.00019763,3]
[347837596,1736146243755,-4734.01,0.00019764,3]
[347837598,1736146243768,-278.82907919,0.000199,2]
[347837601,1736146243778,-500.0,0.0002,3]
[347837603,1736146243787,-803.97,0.0002,3]
[347837605,1736146243797,-2217.28,0.0002,3]
[347837607,1736146243807,-581.88,0.0002,3]
[347837609,1736146243817,-1846.75,0.0002,3]
[347837611,1736146243826,-500.0,0.0002,3]
[347837612,1736146243835,-500.0,0.0002,3]
[347837615,1736146243845,-517.82,0.0002,3]
[347837616,1736146243854,-550.60014399,0.0002,3]
[347837619,1736146243864,-1040.66,0.0002,3]
[347837620,1736146243873,-500.0,0.0002,3]
[347837622,1736146243882,-551.76,0.0002,3]
[347837624,1736146243891,-631.25,0.0002,3]
[347837626,1736146243901,-500.0,0.0002,3]
[347837628,1736146243910,-500.0,0.0002,3]
[347837630,1736146243919,-500.0,0.0002,3]
[347837632,1736146243928,-1188.08,0.0002,3]
[347837634,1736146243937,-500.0,0.0002,3]
[347837636,1736146243947,-1741.65,0.0002,3]
[347837639,1736146243956,-16857.02,0.0002,3]
[347837640,1736146243965,-611.42,0.0002,3]
[347837642,1736146243974,-500.0,0.00020012,3]
[347837644,1736146243983,-765.0,0.00020012,3]
[347837646,1736146243994,-500.0,0.00020018,3]
[347837648,1736146244003,-500.0,0.00020019,3]
[347837650,1736146244012,-423.55051484,0.00020037,3]
[347837652,1736146244022,-1255.86,0.00020037,3]
[347837654,1736146244031,-541.38,0.00020037,3]
[347837656,1736146244040,-500.0,0.00020037,3]
[347837658,1736146244050,-500.0,0.00020037,3]
[347837660,1736146244059,-4734.01,0.00020038,3]
[347837662,1736146244068,-173.0751915,0.0002011,2]
[347837664,1736146244077,-155.76,0.00020273,2]
[347837666,1736146244086,-240.78,0.00020273,3]
[347837668,1736146244095,-803.97,0.00020273,3]
[347837670,1736146244104,-2217.28,0.00020273,3]
[347837672,1736146244113,-581.88,0.00020273,3]
[347837674,1736146244122,-1846.75,0.00020273,3]
[347837676,1736146244131,-500.0,0.00020273,3]
[347837678,1736146244141,-500.0,0.00020273,3]
[347837680,1736146244150,-517.82,0.00020273,3]
[347837682,1736146244159,-1040.66,0.00020273,3]
[347837684,1736146244169,-500.0,0.00020273,3]
[347837686,1736146244178,-551.76,0.00020273,3]
[347837688,1736146244187,-631.25,0.00020273,3]
[347837690,1736146244197,-500.0,0.00020273,3]
[347837692,1736146244206,-500.0,0.00020273,3]
[347837694,1736146244215,-500.0,0.00020273,3]
[347837696,1736146244224,-1188.08,0.00020273,3]
[347837698,1736146244233,-538.05208195,0.00020273,3]
[347837700,1736146244242,-1741.65,0.00020273,3]
[347837702,1736146244252,-16857.02,0.00020273,3]
[347837704,1736146244261,-611.42,0.00020273,3]
[347837706,1736146244270,-500.0,0.00020286,3]
[347837708,1736146244279,-765.0,0.00020286,3]
[347837710,1736146244288,-500.0,0.00020292,3]
[347837712,1736146244297,-500.0,0.00020293,3]
[347837714,1736146244306,-1255.86,0.00020311,3]
[347837716,1736146244316,-541.38,0.00020311,3]
[347837718,1736146244325,-500.0,0.00020311,3]
[347837720,1736146244334,-500.0,0.00020311,3]
[347837722,1736146244343,-4734.01,0.00020312,3]
[347837724,1736146244352,-169017.58416638,0.00020314,5]
[347837734,1736146244436,-7774.919218,0.00020314,5]
[347837736,1736146244447,-52240.8676257,0.00020314,5]
[347837758,1736146244646,-10000.0,0.00020314,5]
[347837964,1736146246608,-899.31,0.00019178,2]
[347837966,1736146246618,-500.0,0.00019763,3]
[347837968,1736146246628,-500.0,0.00020037,3]
[347837970,1736146246637,-500.0,0.00020311,3]
[347837972,1736146246646,-198451.23731981,0.00020314,5]
[347840193,1736146405249,502.24,0.0001501,2]
[347840196,1736146823110,5610.277249,0.00025,120]
[347840201,1736147205181,174.976204,0.00013973,2]
[347840202,1736147254342,-1032.30616632,0.00017469,2]
[347840203,1736147254364,-210.9672869,0.00018185,2]
[347840204,1736147254387,-544.15991832,0.000189,2]
[347840205,1736147254408,-292.199,0.00019177,2]
[347840206,1736147254432,-300.0,0.00019177,2]
[347840207,1736147254453,-503.88895537,0.00019178,2]
[347840208,1736147254475,-506.12213312,0.00019178,2]
[347840209,1736147254496,-500.0,0.00019178,2]
[347840210,1736147254516,-500.0,0.00019178,2]
[347840211,1736147254537,-500.0,0.00019178,2]
[347840212,1736147254558,-500.0,0.00019178,2]
[347840213,1736147254581,-500.0,0.00019178,2]
[347840214,1736147254602,-500.0,0.00019178,2]
[347840215,1736147254622,-396.02622332,0.00019178,2]
[347840216,1736147254645,-500.0,0.00019178,2]
[347840217,1736147254665,-500.0,0.00019178,2]
[347840218,1736147254688,-500.0,0.00019178,2]
[347840219,1736147254708,-500.0,0.00019178,2]
[347840220,1736147254737,-500.0,0.00019178,2]
[347840221,1736147254758,-500.0,0.00019178,2]
[347840222,1736147254778,-500.0,0.00019178,2]
[347840223,1736147254798,-500.0,0.00019178,2]
[347840224,1736147254819,-647.64,0.00019178,2]
[347840225,1736147254843,-500.0,0.00019178,2]
[347840226,1736147254864,-500.0,0.00019178,2]
[347840227,1736147254886,-500.0,0.00019178,2]
[347840228,1736147254908,-500.0,0.00019178,2]
[347840229,1736147254928,-500.0,0.00019178,2]
[347840230,1736147254949,-500.0,0.00019178,2]
[347840231,1736147254969,-500.0,0.00019178,2]
[347840232,1736147254990,-500.0,0.00019178,2]
[347840233,1736147255011,-500.0,0.00019178,2]
[347840234,1736147255032,-500.0,0.00019178,2]
[347840235,1736147255052,-500.0,0.00019178,2]
[347840236,1736147255074,-592.76,0.00019178,2]
[347840237,1736147255095,-500.0,0.00019178,2]
[347840238,1736147255114,-500.0,0.00019178,2]
[347840239,1736147255135,-546.77,0.00019178,2]
[347840240,1736147255155,-500.0,0.00019178,2]
[347840241,1736147255176,-613.48,0.00019178,2]
[347840242,1736147255196,-500.0,0.00019178,2]
[347840243,1736147255218,-500.0,0.00019178,2]
[347840244,1736147255240,-500.0,0.00019178,2]
[347840245,1736147255262,-500.0,0.00019178,2]
[347840246,1736147255283,-638.88,0.00019178,2]
[347840247,1736147255305,-2131.19,0.00019178,2]
[347840248,1736147255327,-500.0,0.00019178,2]
[347840249,1736147255359,-500.0,0.00019178,2]
[347840250,1736147255386,-500.0,0.00019178,2]
[347840251,1736147255407,-500.0,0.00019178,2]
[347840252,1736147255429,-500.0,0.00019178,2]
[347840253,1736147255451,-531.88,0.00019178,2]
[347840254,1736147255472,-457.53373908,0.00019178,2]
[347840255,1736147255493,-523.77,0.00019178,2]
[347840256,1736147255514,-500.0,0.00019178,2]
[347840257,1736147255535,-500.0,0.00019178,2]
[347840258,1736147255557,-500.0,0.00019178,2]
[347840259,1736147255578,-500.0,0.00019178,2]
[347840260,1736147255600,-500.0,0.00019178,2]
[347840261,1736147255629,-500.0,0.00019178,2]
[347840262,1736147255655,-500.0,0.00019178,2]
[347840263,1736147255681,-500.0,0.00019178,2]
[347840264,1736147255708,-500.0,0.00019178,2]
[347840265,1736147255735,-500.0,0.00019178,2]
[347840266,1736147255760,-500.0,0.00019178,2]
[347840267,1736147255791,-1000.69,0.00019178,2]
[347840268,1736147255818,-500.0,0.00019178,2]
[347840269,1736147255848,-500.0,0.00019178,2]
[347840270,1736147255875,-634.97,0.00019178,2]
[347840271,1736147255901,-500.0,0.00019178,2]
[347840272,1736147255928,-500.0,0.00019178,2]
[347840273,1736147255955,-1350.83,0.00019178,2]
[347840274,1736147255979,-639.32927632,0.00019178,2]
[347840275,1736147256005,-500.0,0.00019178,2]
[347840276,1736147256030,-500.0,0.00019178,2]
[347840277,1736147256054,-466.42965618,0.00019178,2]
[347840278,1736147256080,-500.0,0.00019178,2]
[347840279,1736147256107,-500.0,0.00019178,2]
[347840280,1736147256133,-1000.0,0.00019178,7]
[347840281,1736147256159,-16406.61,0.00019178,2]
[347840282,1736147256186,-562.11,0.00019178,2]
[347840283,1736147256212,-602.19,0.00019178,2]
[347840284,1736147256235,-500.0,0.00019178,2]
[347840285,1736147256259,-500.0,0.00019178,2]
[347840286,1736147256283,-500.0,0.00019178,2]
[347840287,1736147256309,-1177.72,0.00019178,2]
[347840288,1736147256334,-500.0,0.00019178,2]
[347840289,1736147256358,-500.0,0.00019178,2]
[347840290,1736147256382,-627.25723523,0.00019178,2]
[347840291,1736147256405,-500.0,0.00019178,2]
[347840292,1736147256428,-500.0,0.00019178,2]
[347840293,1736147256451,-500.0,0.00019178,2]
[347840294,1736147256474,-500.0,0.00019178,2]
[347840295,1736147256496,-609.83,0.00019178,2]
[347840296,1736147256520,-861.84,0.00019178,2]
[347840297,1736147256541,-505.61316964,0.00019178,2]
[347840298,1736147256561,-504.0846828,0.00019178,2]
[347840299,1736147256582,-512.78053316,0.00019178,2]
[347840300,1736147256604,-913.66,0.00019178,2]
[347840301,1736147256625,-500.0,0.00019178,2]
[347840302,1736147256651,-515.6293879,0.00019178,2]
[347840303,1736147256672,-209.46699778,0.00019178,2]
[347840304,1736147256696,-799.62,0.00019178,2]
[347840305,1736147256717,-500.0,0.00019178,2]
[347840306,1736147256740,-500.0,0.00019178,2]
[347840307,1736147256762,-500.0,0.00019178,2]
[347840308,1736147256785,-3729.87,0.00019178,2]
[347840309,1736147256806,-500.0,0.00019178,2]
[347840310,1736147256827,-500.0,0.00019178,2]
[347840311,1736147256849,-506.40283484,0.00019178,2]
[347840312,1736147256870,-500.0,0.00019178,2]
[347840313,1736147256890,-350.82716551,0.00019178,2]
[347840314,1736147256912,-179.075515,0.00019178,2]
[347840315,1736147256935,-6150.35,0.0001919,3]
[347840316,1736147256957,-688.54,0.0001919,3]
[347840317,1736147256978,-500.0,0.00019196,2]
[347840318,1736147257000,-500.0,0.00019196,3]
[347840319,1736147257025,-4691.61,0.00019196,3]
[347840320,1736147257047,-480.237,0.0001929,2]
[347840321,1736147257070,-500.0,0.00019452,3]
[347840322,1736147257092,-500.0,0.00019452,3]
[347840323,1736147257118,-500.0,0.00019452,3]
[347840324,1736147257140,-524.64,0.00019452,3]
[347840325,1736147257162,-500.0,0.00019452,3]
[347840326,1736147257185,-647.64,0.00019452,3]
[347840327,1736147257208,-500.0,0.00019452,3]